[Event "CZE-ch U14 Open 2023"]
[Site "Teplice"]
[Date "2023.03.11"]
[Round "1.7"]
[White "Tichy, Tomas"]
[Black "Hrbek, Jachym"]
[Result "0-1"]
[ECO "C68"]
[WhiteElo "1810"]
[BlackElo "1824"]
[Annotator "NA RC COMBH"]
[PlyCount "98"]
[EventDate "2023.03.09"]
[EventType "swiss"]
[EventCountry "CZE"]
[SourceTitle "playchess.com"]
[Source "ChessBase"]
[SourceQuality "1"]
[TimeControl "40/5400+30:1800+30"]

1. e4 {[%emt 0:00:31]} e5 {[%emt 0:00:21]} 2. Nf3 {[%emt 0:00:25]} Nc6 {[%emt 0:00:26]} 3. Bb5 {[%emt 0:00:17]} a6 {[%emt 0:00:13]} 4. Bxc6 {[%emt 0:00:11]} dxc6 {[%emt 0:00:11]} 5. O-O {[%emt 0:01:40]} Bg4 {[%emt 0:07:22]} 6. h3 {[%emt 0:02:19]} Bxf3 {[%emt 0:01:50]} 7. Qxf3 {[%emt 0:00:46]} Qf6 {[%emt 0:01:24]} 8. Qxf6 {[%emt 0:10:31]} Nxf6 {[%emt 0:00:32]} 9. d3 {[%emt 0:02:33]} Bc5 {[%emt 0:06:56]} 10. Nc3 {[%emt 0:10:15]} O-O-O {[%emt 0:06:43]} 11. Kh1 {[%emt 0:04:02]} h5 {[%emt 0:05:45]} 12. f4 {[%emt 0:06:10]} Ng4 {[%emt 0:03:35]} 13. fxe5 {[%emt 0:04:45]} Nxe5 {[%emt 0:00:28]} 14. Rf5 {[%emt 0:15:15]} f6 {[%emt 0:08:05]} 15. Bd2 {[%emt 0:05:46]} Ba7 {[%emt 0:01:50]} 16. Re1 {[%emt 0:05:17]} Rd7 {[%emt 0:20:54]} 17. Be3 {[%emt 0:01:51]} Bxe3 {[%emt 0:00:54]} 18. Rxe3 {[%emt 0:00:05]} b6 {[%emt 0:04:12]} 19. b4 {[%emt 0:06:12]} Kb7 {[%emt 0:04:49]} 20. Na4 {[%emt 0:02:52]} Rd4 {[%emt 0:02:01]} 21. a3 {[%emt 0:03:09]} c5 {[%emt 0:01:25]} 22. c3 {[%emt 0:02:26]} Rxd3 {[%emt 0:00:12]} 23. Rxd3 {[%emt 0:01:42]} Nxd3 {[%emt 0:00:07]} 24. Rd5 {[%emt 0:01:10]} Nf2+ {[%emt 0:03:07]} 25. Kg1 {[%emt 0:00:39]} Nxe4 {[%emt 0:00:07]} 26. Rd7 {[%emt 0:02:37]} cxb4 {[%emt 0:00:40]} 27. cxb4 {[%emt 0:00:32]} g5 {[%emt 0:00:45]} 28. Re7 {[%emt 0:00:28]} Nd6 {[%emt 0:03:03]} 29. Nc3 {[%emt 0:00:28]} Kc6 {[%emt 0:00:29]} 30. Kf2 {[%emt 0:00:55]} h4 {[%emt 0:01:52]} 31. Kf3 {[%emt 0:01:04]} Re8 {[%emt 0:00:33]} 32. Rxe8 {[%emt 0:01:44]} Nxe8 {[%emt 0:00:04]} 33. Ne4 {[%emt 0:01:42]} Kd5 {[%emt 0:00:37]} 34. Ke3 {[%emt 0:00:31]} Ke5 {[%emt 0:00:39]} 35. Nf2 {[%emt 0:01:49]} f5 {[%emt 0:00:26]} 36. Kd3 {[%emt 0:01:51]} Nd6 {[%emt 0:00:17]} 37. Nd1 {[%emt 0:00:14]} c5 {[%emt 0:01:56]} 38. bxc5 {[%emt 0:00:21]} bxc5 {[%emt 0:00:02]} 39. Ne3 {[%emt 0:00:12]} c4+ {[%emt 0:00:46]} 40. Nxc4+ {[%emt 0:00:24]} Nxc4 {[%emt 0:00:05]} 41. Kxc4 {[%emt 0:30:05]} Kf4 {[%emt 0:30:04]} 42. Kc5 {[%emt 0:01:12]} Kg3 {[%emt 0:00:43]} 43. Kb6 {[%emt 0:00:04]} Kxg2 {[%emt 0:00:05]} 44. Kxa6 {[%emt 0:00:03]} f4 {[%emt 0:00:05]} 45. Kb6 {[%emt 0:00:05]} f3 {[%emt 0:00:03]} 46. a4 {[%emt 0:00:05]} f2 {[%emt 0:00:04]} 47. a5 {[%emt 0:00:04]} f1=Q {[%emt 0:00:07]} 48. a6 {[%emt 0:00:03]} Qf3 {[%emt 0:00:12]} 49. Ka7 {[%emt 0:00:18]} Qc6 {[%emt 0:00:06]} 0-1

[Event "CZE-ch U14 Open 2023"]
[Site "Teplice"]
[Date "2023.03.11"]
[Round "1.8"]
[White "Stary, Vojtech"]
[Black "Dusanek, Michal"]
[Result "1-0"]
[ECO "A04"]
[WhiteElo "1814"]
[BlackElo "1624"]
[Annotator "NA RC COMBH"]
[PlyCount "22"]
[EventDate "2023.03.09"]
[EventType "swiss"]
[EventCountry "CZE"]
[SourceTitle "playchess.com"]
[Source "ChessBase"]
[SourceQuality "1"]
[TimeControl "40/5400+30:1800+30"]

1. Nf3 {[%emt 0:00:03]} c5 {[%emt 0:00:55]} 2. c4 {[%emt 0:00:12]} Nc6 {[%emt 0:00:34]} 3. d4 {[%emt 0:00:11]} cxd4 {[%emt 0:01:48]} 4. Nxd4 {[%emt 0:00:09]} g6 {[%emt 0:00:44]} 5. g3 {[%emt 0:01:23]} Bg7 {[%emt 0:01:00]} 6. Nc2 {[%emt 0:00:51]} Nf6 {[%emt 0:01:39]} 7. Nc3 {[%emt 0:00:42]} O-O {[%emt 0:02:04]} 8. Bg2 {[%emt 0:01:13]} d6 {[%emt 0:02:01]} 9. O-O {[%emt 0:00:17]} Be6 {[%emt 0:06:27]} 10. b3 {[%emt 0:07:03]} Ne4 {[%emt 0:09:44]} 11. Nxe4 {[%emt 0:00:43]} Bxa1 {[%emt 0:16:05]} 1-0

[Event "CZE-ch U14 Open 2023"]
[Site "Teplice"]
[Date "2023.03.11"]
[Round "1.9"]
[White "Ocelak, David"]
[Black "Babula, Matej"]
[Result "1-0"]
[ECO "B40"]
[WhiteElo "1608"]
[BlackElo "1796"]
[Annotator "NA RC COMBH"]
[PlyCount "53"]
[EventDate "2023.03.09"]
[EventType "swiss"]
[EventCountry "CZE"]
[SourceTitle "playchess.com"]
[Source "ChessBase"]
[SourceQuality "1"]
[TimeControl "40/5400+30:1800+30"]

1. e4 {[%emt 0:00:09]} c5 {[%emt 0:00:08]} 2. Nf3 {[%emt 0:00:18]} e6 {[%emt 0:00:09]} 3. b4 {[%emt 0:00:56]} cxb4 {[%emt 0:00:11]} 4. d4 {[%emt 0:00:26]} d5 {[%emt 0:02:05]} 5. e5 {[%emt 0:00:22]} Nc6 {[%emt 0:03:08]} 6. a3 {[%emt 0:01:42]} Nh6 {[%emt 0:08:13]} 7. h4 {[%emt 0:11:39]} f6 {[%emt 0:07:47]} 8. Bd3 {[%emt 0:15:43]} Nf7 {[%emt 0:05:20]} 9. Qe2 {[%emt 0:14:31]} Be7 {[%emt 0:05:51]} 10. h5 {[%emt 0:04:13]} fxe5 {[%emt 0:04:38]} 11. dxe5 {[%emt 0:03:10]} Ncxe5 {[%emt 0:01:56]} 12. Nxe5 {[%emt 0:01:35]} Nxe5 {[%emt 0:00:03]} 13. Qxe5 {[%emt 0:04:02]} Bf6 {[%emt 0:00:22]} 14. Bb5+ {[%emt 0:00:57]} Ke7 {[%emt 0:06:43]} 15. Bg5 {[%emt 0:01:13]} Qa5 {[%emt 0:03:42]} 16. Bxf6+ {[%emt 0:03:06]} gxf6 {[%emt 0:00:02]} 17. Qe2 {[%emt 0:02:32]} bxa3+ {[%emt 0:01:33]} 18. Kf1 {[%emt 0:06:50]} a2 {[%emt 0:04:03]} 19. Nd2 {[%emt 0:00:32]} Rg8 {[%emt 0:01:42]} 20. Nb3 {[%emt 0:02:44]} Qa3 {[%emt 0:02:02]} 21. Qd3 {[%emt 0:01:33]} Rg7 {[%emt 0:01:03]} 22. Qc3 {[%emt 0:01:32]} Rg4 {[%emt 0:12:33]} 23. Qc7+ {[%emt 0:00:39]} Kf8 {[%emt 0:00:25]} 24. Qd8+ {[%emt 0:00:45]} Kg7 {[%emt 0:00:13]} 25. h6+ {[%emt 0:02:49]} Kg6 {[%emt 0:00:07]} 26. Qe8+ {[%emt 0:12:22]} Kf5 {[%emt 0:01:40]} 27. Rh5+ 1-0

[Event "CZE-ch U14 Open 2023"]
[Site "Teplice"]
[Date "2023.03.11"]
[Round "1.10"]
[White "Popov, Roman"]
[Black "Srba, Daniel"]
[Result "1-0"]
[ECO "D35"]
[WhiteElo "2353"]
[BlackElo "1509"]
[Annotator "TA"]
[PlyCount "63"]
[EventDate "2023.03.09"]
[EventType "swiss"]
[EventCountry "CZE"]
[SourceTitle "playchess.com"]
[Source "ChessBase"]
[SourceQuality "1"]
[TimeControl "40/5400+30:1800+30"]

{[%evp 20,63,83,85,133,151,202,208,200,200,214,218,212,214,218,185,207,175,221,219,200,197,197,196,207,193,193,190,197,201,206,202,208,200,220,196,192,194,195,195,283,289,283,279,789,786]} 1. d4 {[%emt 0:00:09]} d5 {[%emt 0:00:36]} 2. c4 {[%emt 0:00:09]} e6 {[%emt 0:00:28]} 3. Nc3 {[%emt 0:00:16]} Nf6 {[%emt 0:00:44]} 4. cxd5 {[%emt 0:01:09]} exd5 {[%emt 0:00:11]} 5. Bg5 {[%emt 0:00:16]} Be7 {[%emt 0:00:49]} 6. e3 {[%emt 0:00:12]} O-O {[%emt 0:00:46]} 7. Bd3 {[%emt 0:00:10]} c6 {[%emt 0:01:50]} 8. Qc2 {[%emt 0:00:16]} Nbd7 {[%emt 0:01:05]} 9. Nge2 {[%emt 0:00:43]} Re8 {[%emt 0:00:56]} 10. O-O {[%emt 0:00:57]} Ne4 {[%emt 0:07:17]} 11. Bf4 {[%emt 0:08:19][%cal Oc3d5] Black must now prevent Nxd5!} ({Don't play} 11. Nxe4 dxe4 12. Bxe7 exd3 13. Bxd8 dxc2 $15) 11... Nef6 {[%emt 0:06:27] [#] D36: Queen's Gambit Declined: Exchange Variation: Main line (5 Bg5 c6 6 Qc2).} (11... g5 $142) 12. Nb5 $1 $16 {[%emt 0:04:04] Bc7 is the strong threat. White has more active pieces. The black rooks are badly placed.} Rf8 {[%emt 0:04:56] [#]} (12... cxb5 $2 13. Bc7 $18) (12... Nc5 $16) 13. Bc7 $1 $18 {[%emt 0:01:43]} Qe8 {[%emt 0:01:32] White is clearly better.} 14. Nd6 {[%emt 0:00:37]} Bxd6 {[%emt 0:00:28]} 15. Bxd6 {[%emt 0:00:06]} Qe6 {[%emt 0:02:37]} 16. Bxf8 {[%emt 0:00:25]} Nxf8 {[%emt 0:00:06]} 17. Ng3 {[%emt 0:00:34]} g6 {[%emt 0:08:46] [#]} 18. Rac1 $146 {[%emt 0:02:49]} ({Predecessor:} 18. Rfe1 h5 19. e4 h4 20. exd5 Qxd5 21. Ne4 Nxe4 22. Rxe4 h3 23. Qc5 Be6 24. Qxd5 Bxd5 {1-0 Amura,C (2385)-Chaves,J (2045) Sao Paulo zt (Women) 1991 (4)}) 18... Qg4 {[%emt 0:02:41]} (18... Qe7 $142 19. Ne2 Ne8) 19. Qe2 {[%emt 0:09:57]} Qh4 {[%emt 0:02:09]} 20. f3 {[%emt 0:21:13]} Bd7 {[%emt 0:01:59]} 21. Qe1 {[%emt 0:10:08]} Qh6 {[%emt 0:08:56]} 22. Qf2 {[%emt 0:02:43]} Ne6 {[%emt 0:02:59]} 23. Bb1 {[%emt 0:10:57]} Rf8 {[%emt 0:04:28]} 24. Rcd1 {[%emt 0:07:02]} Rd8 {[%emt 0:02:47]} 25. a3 {[%emt 0:05:33]} Bc8 {[%emt 0:02:08]} 26. Ba2 {[%emt 0:00:53]} Rf8 {[%emt 0:02:02]} 27. e4 {[%emt 0:00:55][%cal Be3e4,Be4e5][%mdl 32]} Nf4 {[%emt 0:00:53][%cal Oc8h3]} 28. e5 {[%emt 0:00:56]} N6h5 {[%emt 0:02:22]} 29. Qd2 {[%emt 0:03:46]} Qg5 {[%emt 0:03:02]} (29... Ng7 $142 30. Ne2 Nxe2+ 31. Qxe2 Re8) 30. Nxh5 {[%emt 0:01:19]} gxh5 {[%emt 0:01:05]} 31. g3 {[%emt 0:01:38]} h4 $2 {[%emt 0:00:57]} (31... Nh3+ 32. Kg2 Qxd2+ 33. Rxd2 Ng5) 32. Qxf4 {[%emt 0:00:10] White took control after the opening.   Weighted Error Value: White=0.05 (flawless) /Black=0.20 (precise)} 1-0

[Event "CZE-ch U14 Open 2023"]
[Site "Teplice"]
[Date "2023.03.11"]
[Round "1.11"]
[White "Striz, Tadeas"]
[Black "Zrubek, Dan"]
[Result "0-1"]
[ECO "B77"]
[WhiteElo "1503"]
[BlackElo "1752"]
[Annotator "NA RC COMBH"]
[PlyCount "46"]
[EventDate "2023.03.09"]
[EventType "swiss"]
[EventCountry "CZE"]
[SourceTitle "playchess.com"]
[Source "ChessBase"]
[SourceQuality "1"]
[TimeControl "40/5400+30:1800+30"]

1. e4 {[%emt 0:00:09]} c5 {[%emt 0:00:07]} 2. Nf3 {[%emt 0:00:08]} d6 {[%emt 0:00:08]} 3. d4 {[%emt 0:00:10]} cxd4 {[%emt 0:00:09]} 4. Nxd4 {[%emt 0:00:03]} Nf6 {[%emt 0:00:29]} 5. Nc3 {[%emt 0:00:18]} g6 {[%emt 0:00:17]} 6. Be3 {[%emt 0:00:35]} Bg7 {[%emt 0:00:17]} 7. f3 {[%emt 0:00:50]} O-O {[%emt 0:00:14]} 8. Bc4 {[%emt 0:00:11]} Nc6 {[%emt 0:00:44]} 9. Qd2 {[%emt 0:00:40]} Nxd4 {[%emt 0:02:36]} 10. Bxd4 {[%emt 0:00:23]} Be6 {[%emt 0:01:10]} 11. Bxe6 {[%emt 0:02:58]} fxe6 {[%emt 0:00:06]} 12. h4 {[%emt 0:00:30]} Qa5 {[%emt 0:03:18]} 13. O-O-O {[%emt 0:01:53]} Rac8 {[%emt 0:01:34]} 14. Kb1 {[%emt 0:02:25]} Nd7 {[%emt 0:01:41]} 15. Bxg7 {[%emt 0:06:09]} Kxg7 {[%emt 0:00:07]} 16. h5 {[%emt 0:03:08]} g5 {[%emt 0:02:11]} 17. Rdf1 {[%emt 0:24:43]} h6 {[%emt 0:22:55]} 18. f4 {[%emt 0:07:41]} Rxf4 {[%emt 0:05:34]} 19. Rxf4 {[%emt 0:00:26]} gxf4 {[%emt 0:00:35]} 20. Qxf4 {[%emt 0:00:02]} Qg5 {[%emt 0:00:39]} 21. Qf2 {[%emt 0:14:01]} a6 {[%emt 0:07:39]} 22. Ne2 {[%emt 0:11:43]} Rf8 {[%emt 0:07:02]} 23. Qh4 {[%emt 0:03:15]} Rf1+ {[%emt 0:01:47]} 0-1

[Event "CZE-ch U14 Open 2023"]
[Site "Teplice"]
[Date "2023.03.11"]
[Round "1.12"]
[White "Zemek, Antonin"]
[Black "Macosek, Alex"]
[Result "1-0"]
[ECO "A04"]
[WhiteElo "1739"]
[BlackElo "1466"]
[Annotator "NA RC COMBH"]
[PlyCount "79"]
[EventDate "2023.03.09"]
[EventType "swiss"]
[EventCountry "CZE"]
[SourceTitle "playchess.com"]
[Source "ChessBase"]
[SourceQuality "1"]
[TimeControl "40/5400+30:1800+30"]

1. Nf3 {[%emt 0:00:19]} g6 {[%emt 0:01:42]} 2. g3 {[%emt 0:00:52]} Bg7 {[%emt 0:00:47]} 3. Bg2 {[%emt 0:01:18]} d6 {[%emt 0:00:57]} 4. c4 {[%emt 0:00:50]} Nc6 {[%emt 0:00:49]} 5. Nc3 {[%emt 0:02:53]} e5 {[%emt 0:02:10]} 6. d3 {[%emt 0:00:53]} Nge7 {[%emt 0:01:04]} 7. O-O {[%emt 0:00:58]} h5 {[%emt 0:03:03]} 8. a3 {[%emt 0:00:47]} Bg4 {[%emt 0:01:11]} 9. b4 {[%emt 0:02:33]} Qc8 {[%emt 0:01:03]} 10. Bb2 {[%emt 0:01:13]} h4 {[%emt 0:02:51]} 11. e3 {[%emt 0:02:06]} e4 {[%emt 0:05:16]} 12. dxe4 {[%emt 0:01:01]} Ne5 {[%emt 0:00:14]} 13. Qe2 {[%emt 0:01:13]} f5 {[%emt 0:03:18]} 14. Rab1 {[%emt 0:07:46]} fxe4 {[%emt 0:03:24]} 15. Nxe4 {[%emt 0:00:21]} Qf5 {[%emt 0:00:14]} 16. Ned2 {[%emt 0:03:25]} Qh5 {[%emt 0:04:49]} 17. Bxe5 {[%emt 0:02:02]} Bxe5 {[%emt 0:00:12]} 18. h3 {[%emt 0:00:45]} Bxh3 {[%emt 0:02:07]} 19. Bxh3 {[%emt 0:01:29]} hxg3 {[%emt 0:00:25]} 20. Bg2 {[%emt 0:01:24]} g5 {[%emt 0:03:32]} 21. fxg3 {[%emt 0:01:06]} Bxg3 {[%emt 0:01:19]} 22. Ne4 {[%emt 0:01:14]} Be5 {[%emt 0:02:41]} 23. Kf2 {[%emt 0:02:24]} g4 {[%emt 0:03:31]} 24. Nxe5 {[%emt 0:00:49]} Qh4+ {[%emt 0:00:44]} 25. Ng3 {[%emt 0:01:59]} dxe5 {[%emt 0:01:11]} 26. Rh1 {[%emt 0:03:35]} Rf8+ {[%emt 0:00:28]} 27. Kg1 {[%emt 0:00:58]} Qxg3 {[%emt 0:00:26]} 28. Rd1 {[%emt 0:03:14]} Nf5 {[%emt 0:01:39]} 29. Rh7 {[%emt 0:15:01]} Rf7 {[%emt 0:08:57]} 30. Rh8+ {[%emt 0:02:06]} Rf8 {[%emt 0:00:07]} 31. Rxf8+ {[%emt 0:00:09]} Kxf8 {[%emt 0:00:07]} 32. Rf1 {[%emt 0:00:03]} Ke7 {[%emt 0:04:16]} 33. Rxf5 {[%emt 0:00:24]} Rd8 {[%emt 0:00:54]} 34. Kf1 {[%emt 0:01:05]} Ke6 {[%emt 0:02:13]} 35. Rg5 {[%emt 0:01:45]} Rf8+ {[%emt 0:04:34]} 36. Kg1 {[%emt 0:00:06]} Rf3 {[%emt 0:00:59]} 37. Rg6+ {[%emt 0:01:09]} Ke7 {[%emt 0:00:40]} 38. Qxf3 {[%emt 0:00:19]} Qe1+ {[%emt 0:00:17]} 39. Qf1 {[%emt 0:00:05]} Qxe3+ {[%emt 0:00:11]} 40. Kh1 {[%emt 0:00:15]} 1-0

[Event "CZE-ch U14 Open 2023"]
[Site "Teplice"]
[Date "2023.03.12"]
[Round "2.1"]
[White "Popov, Roman"]
[Black "Juhanak, Daniel"]
[Result "0-1"]
[ECO "E27"]
[WhiteElo "2353"]
[BlackElo "1952"]
[Annotator "TA"]
[PlyCount "99"]
[EventDate "2023.03.09"]
[EventType "swiss"]
[EventCountry "CZE"]
[SourceTitle "playchess.com"]
[Source "ChessBase"]
[SourceQuality "1"]
[TimeControl "40/5400+30:1800+30"]

{[%evp 18,99,-33,-56,-55,-69,-31,-41,-26,-35,66,45,31,-97,-99,-108,-93,-102,-71,-182,-177,-218,-213,-247,-235,-235,-214,-205,-168,-166,-114,-144,-131,-170,-116,-207,-182,-197,-205,-214,-219,-216,-204,-208,-149,-201,-196,-185,-166,-180,-188,-162,-129,-113,-99,-448,-424,-485,-483,-500,-486,-497,-513,-532,-532,-517,-521,-525,-517,-530,-495,-1513,-1437,-1639,-1269,-1591,-1815,-6606,-6494,-2545,-1112,-853,0,-1602]} 1. d4 {[%emt 0:00:19]} Nf6 {[%emt 0:00:02]} 2. c4 {[%emt 0:00:07]} e6 {[%emt 0:00:09]} 3. Nc3 {[%emt 0:00:05]} Bb4 {[%emt 0:00:16]} 4. a3 {[%emt 0:00:09]} Bxc3+ {[%emt 0:00:39]} 5. bxc3 {[%emt 0:00:02]} O-O {[%emt 0:02:03]} 6. f3 {[%emt 0:01:58]} c5 {[%emt 0:07:06]} 7. e3 {[%emt 0:09:29]} d6 {[%emt 0:05:57]} 8. Bd3 Nc6 {[%emt 0:05:24]} 9. Ne2 {[%emt 0:08:57]} b6 {[%emt 0:04:27]} 10. O-O {[%emt 0:04:00]} Ba6 {[%emt 0:01:38] E29: Nimzo-Indian: Sämisch: 5...0-0 6 e3 c5 7 Bd3 Nc6.} 11. e4 {[%emt 0:08:30]} Nd7 {[%emt 0:08:55] [#]} 12. f4 $146 {[%emt 0:03:52]} ({Predecessor:} 12. Be3 Na5 13. Qa4 Rc8 14. Rac1 Qe7 15. Rfd1 Rfd8 16. Bf2 Nf8 17. e5 dxe5 18. dxc5 {½-½ Karahan,A (1739)-Samani,Y (2083) TUR-chT2 Konya 2016 (1.9)}) 12... Na5 {[%emt 0:03:14] Black is slightly better.} 13. f5 {[%emt 0:04:38][%cal Of5f6]} Bxc4 {[%emt 0:12:34]} ({Don't play} 13... Nxc4 14. Qa4 $16) (13... Kh8 $15) 14. Bxc4 $14 {[%emt 0:07:55]} Nxc4 {[%emt 0:00:12]} 15. fxe6 {[%emt 0:02:33]} (15. f6 $14 {keeps the upper hand.}) 15... fxe6 $17 {[%emt 0:00:55][%cal Bf7e6,Be6e5][%mdl 32]} 16. Nf4 {[%emt 0:01:30]} Qe7 {[%emt 0:02:41]} 17. Qe2 {[%emt 0:11:06]} b5 {[%emt 0:04:48]} (17... Na5 {simplifies} 18. Bd2 Rae8 19. Nh3 Rxf1+ 20. Rxf1 Rf8) 18. Ra2 {[%emt 0:11:24]} (18. a4 $17) 18... Ndb6 $19 {[%emt 0:03:32]} 19. Qg4 {[%emt 0:05:04]} e5 {[%emt 0:06:03]} 20. Ne6 {[%emt 0:02:45]} Rxf1+ {[%emt 0:06:52]} 21. Kxf1 {[%emt 0:00:09]} cxd4 {[%emt 0:02:38]} 22. cxd4 {[%emt 0:03:41]} exd4 {[%emt 0:02:58]} 23. Nxd4 {[%emt 0:05:31]} Rf8+ {[%emt 0:05:59]} (23... Ne5 $19 24. Qe2 Nbc4) 24. Nf5 {[%emt 0:04:23]} Kh8 {[%emt 0:04:07] aiming for ...g6. Black is more active.} 25. Rf2 {[%emt 0:01:29]} Qe5 {[%emt 0:00:40]} (25... Qf6 $1 $19 {And now ...g6 would win.} 26. Qg5 Nd7 27. Qxf6 Nxf6) 26. Qg5 {[%emt 0:02:23]} (26. Kg1 $17) 26... Nd7 {[%emt 0:04:00][%cal Bb6d7,Bd7c5,Bc5b3][%mdl 32] Excellent horsemanship.} (26... Qxh2 $2 27. Qxg7#) 27. Qe7 {[%emt 0:01:12] [#]} Qxe7 {[%emt 0:02:02]} 28. Nxe7 {[%emt 0:00:05] [#]} Rxf2+ $1 {[%emt 0:01:29]} 29. Kxf2 {[%emt 0:00:01][%mdl 4096] Endgame KBN-KNN} Nc5 {[%emt 0:00:09] Strongly threatening ...Nd3+.} 30. Kf3 {[%emt 0:00:54]} Ne5+ {[%emt 0:00:20]} 31. Ke3 {[%emt 0:01:10]} (31. Ke2 $17 {was called for.}) 31... Nb3 {[%emt 0:00:09]} 32. Bb2 {[%emt 0:00:34]} Nc4+ {[%emt 0:00:06]} 33. Kd3 {[%emt 0:00:18]} Nc5+ {[%emt 0:01:00]} ({And not} 33... Nxb2+ 34. Kc3 $15) 34. Kc2 {[%emt 0:00:29]} Nxe4 {[%emt 0:02:10]} 35. Bd4 {[%emt 0:00:36]} a5 {[%emt 0:01:15]} 36. Nf5 $2 {[%emt 0:00:35][%mdl 8192]} (36. Kb3 $17 {is tougher.}) 36... Nxa3+ {[%emt 0:00:48]} 37. Kb3 {[%emt 0:00:08]} Nc4 {[%emt 0:00:20]} 38. Bxg7+ {[%emt 0:00:33]} Kg8 {[%emt 0:00:03]} 39. Bd4 {[%emt 0:00:42]} Kf7 {[%emt 0:00:19]} 40. g4 {[%emt 0:00:36]} Ned2+ {[%emt 0:01:35]} 41. Kc2 {[%emt 0:30:36]} Nf3 {[%emt 0:30:52]} 42. h4 {[%emt 0:00:00]} Ke6 {[%emt 0:00:00][%cal Oh7h5]} 43. h5 {[%emt 0:00:00]} Nce5 {[%emt 0:00:00]} 44. Bxe5 {[%emt 0:00:00]} (44. Bc3 $142 Nxg4 45. Ng7+ Kf7 46. Nf5) 44... dxe5 {[%emt 0:00:00][%cal Bd6e5,Be5e4][%mdl 32] KN-KN} 45. Ne3 {[%emt 0:00:00]} e4 {[%emt 0:00:00]} 46. Kc3 {[%emt 0:00:00]} Ke5 {[%emt 0:00:00]} 47. Ng2 {[%emt 0:00:00]} b4+ {[%emt 0:00:00]} 48. Kb3 {[%emt 0:00:00]} Nd2+ {[%emt 0:00:00]} (48... Kd4 $142 49. Nf4 e3) 49. Kc2 {[%emt 0:00:00]} Nf3 {[%emt 0:00:00]} (49... Nf1 $142 50. g5 a4) 50. Kb3 $1 {[%emt 0:00:00] Weighted Error Value: White=0.65/Black=0.18 (very precise)} 0-1

[Event "CZE-ch U14 Open 2023"]
[Site "Teplice"]
[Date "2023.03.12"]
[Round "2.2"]
[White "Zrubek, Dan"]
[Black "Topencik, Bruno"]
[Result "1/2-1/2"]
[ECO "C15"]
[WhiteElo "1752"]
[BlackElo "1844"]
[Annotator "NA RC COMBH"]
[PlyCount "63"]
[EventDate "2023.03.09"]
[EventType "swiss"]
[EventCountry "CZE"]
[SourceTitle "playchess.com"]
[Source "ChessBase"]
[SourceQuality "1"]
[TimeControl "40/5400+30:1800+30"]

1. e4 {[%emt 0:00:02]} e6 {[%emt 0:00:04]} 2. d4 {[%emt 0:00:05]} d5 {[%emt 0:00:02]} 3. Nc3 {[%emt 0:00:14]} Bb4 {[%emt 0:00:10]} 4. Nge2 {[%emt 0:00:26]} dxe4 {[%emt 0:00:12]} 5. a3 {[%emt 0:00:09]} Bxc3+ {[%emt 0:00:10]} 6. Nxc3 {[%emt 0:00:23]} Nc6 {[%emt 0:00:04]} 7. Bb5 {[%emt 0:02:18]} Nge7 {[%emt 0:00:07]} 8. Nxe4 {[%emt 0:12:35]} O-O {[%emt 0:00:51]} 9. c3 {[%emt 0:03:14]} Qd5 {[%emt 0:06:00]} 10. Bxc6 {[%emt 0:17:36]} Nxc6 {[%emt 0:03:15]} 11. Qf3 {[%emt 0:02:05]} Kh8 {[%emt 0:16:35]} 12. Ng5 {[%emt 0:12:37]} Qxf3 {[%emt 0:03:28]} 13. Nxf3 {[%emt 0:00:11]} e5 {[%emt 0:16:17]} 14. Nxe5 {[%emt 0:07:26]} Re8 {[%emt 0:01:27]} 15. O-O {[%emt 0:01:00]} Nxe5 {[%emt 0:00:21]} 16. dxe5 {[%emt 0:00:05]} Rxe5 {[%emt 0:00:53]} 17. Bf4 {[%emt 0:00:37]} Re7 {[%emt 0:00:20]} 18. Rfe1 {[%emt 0:01:24]} Be6 {[%emt 0:00:13]} 19. Rad1 {[%emt 0:03:16]} c6 {[%emt 0:00:45]} 20. Rd4 {[%emt 0:05:31]} Rd7 {[%emt 0:03:24]} 21. Rxd7 {[%emt 0:02:15]} Bxd7 {[%emt 0:00:06]} 22. Re7 {[%emt 0:01:00]} Re8 {[%emt 0:00:10]} 23. Rxe8+ {[%emt 0:00:19]} Bxe8 {[%emt 0:00:07]} 24. Kf1 {[%emt 0:02:56]} Kg8 {[%emt 0:01:09]} 25. Ke2 {[%emt 0:01:23]} f6 {[%emt 0:03:42]} 26. Ke3 {[%emt 0:03:40]} Kf7 {[%emt 0:00:13]} 27. Bb8 {[%emt 0:00:23]} a6 {[%emt 0:00:50]} 28. Kd4 {[%emt 0:00:33]} Ke6 {[%emt 0:00:13]} 29. Kc5 {[%emt 0:02:31]} Kd7 {[%emt 0:00:11]} 30. Kb6 {[%emt 0:00:38]} Kc8 {[%emt 0:00:22]} 31. Bf4 {[%emt 0:01:27]} Bf7 {[%emt 0:00:35]} 32. Be3 {[%emt 0:00:10]} 1/2-1/2